[Event "Titled Tuesday Blitz January 17 Late 2023"]
[White "Bjelobrk, Igor"]
[Black "Dylag, Emilia"]
[WhiteFideId "4300726"]
[BlackFideId "21805172"]
[WhiteElo "2403"]
[BlackElo "2095"]
[Result "1-0"]
[Round "03"]
[TimeControl "180+2"]
[Date "2023.01.17"]
[WhiteClock "0:00:18"]
[BlackClock "0:00:03"]

1. Nf3 {[%clk 0:02:58]}  Nf6 {[%clk 0:02:59]} 2. c4 {[%clk 0:02:57]}  e6 {[%clk 0:02:58]} 3. g3 {[%clk 0:02:57]}  d5 {[%clk 0:02:57]} 4. Bg2 {[%clk 0:02:57]}  Bd6 {[%clk 0:02:56]} 5. O-O {[%clk 0:02:55]}  O-O {[%clk 0:02:56]} 6. d4 {[%clk 0:02:53]}  h6 {[%clk 0:02:56]} 7. Nc3 {[%clk 0:02:52]}  Nc6 {[%clk 0:02:54]} 8. b3 {[%clk 0:02:46]}  dxc4 {[%clk 0:02:53]} 9. bxc4 {[%clk 0:02:46]}  e5 {[%clk 0:02:53]} 10. e3 {[%clk 0:02:40]}  exd4 {[%clk 0:02:45]} 11. exd4 {[%clk 0:02:39]}  Bb4 {[%clk 0:02:45]} 12. Bb2 {[%clk 0:02:37]}  Bg4 {[%clk 0:02:44]} 13. Ne2 {[%clk 0:02:29]}  Ne4 {[%clk 0:02:32]} 14. d5 {[%clk 0:01:55]}  Bxf3 {[%clk 0:02:21]} 15. Bxf3 {[%clk 0:01:49]}  Nd2 {[%clk 0:02:20]} 16. Nf4 {[%clk 0:01:41]}  Nxf1 {[%clk 0:02:14]} 17. Kxf1 {[%clk 0:01:31]}  Ne7 {[%clk 0:02:01]} 18. Qd4 {[%clk 0:01:29]}  Nf5 {[%clk 0:01:57]} 19. Qe5 {[%clk 0:01:28]}  Qf6 {[%clk 0:00:59]} 20. Qxf6 {[%clk 0:01:27]}  gxf6 {[%clk 0:01:00]} 21. Nh5 {[%clk 0:01:17]}  Be7 {[%clk 0:00:32]} 22. Re1 {[%clk 0:01:15]}  Bd8 {[%clk 0:00:32]} 23. Bg4 {[%clk 0:01:08]}  Nd6 {[%clk 0:00:32]} 24. c5 {[%clk 0:01:07]}  Nc4 {[%clk 0:00:32]} 25. Bd4 {[%clk 0:01:02]}  Ne5 {[%clk 0:00:31]} 26. Bf5 {[%clk 0:01:00]}  b6 {[%clk 0:00:25]} 27. c6 {[%clk 0:00:58]}  a5 {[%clk 0:00:14]} 28. f4 {[%clk 0:00:56]}  Ng6 {[%clk 0:00:13]} 29. Bd7 {[%clk 0:00:52]}  a4 {[%clk 0:00:12]} 30. Nxf6+ {[%clk 0:00:48]}  Bxf6 {[%clk 0:00:11]} 31. Bxf6 {[%clk 0:00:49]}  Ra5 {[%clk 0:00:11]} 32. Rd1 {[%clk 0:00:35]}  Rc5 {[%clk 0:00:10]} 33. Rd2 {[%clk 0:00:31]}  Ra8 {[%clk 0:00:06]} 34. Kf2 {[%clk 0:00:31]}  a3 {[%clk 0:00:06]} 35. Kf3 {[%clk 0:00:31]}  Raa5 {[%clk 0:00:06]} 36. Ke4 {[%clk 0:00:31]}  Ra4+ {[%clk 0:00:07]} 37. Kf5 {[%clk 0:00:31]}  Raa5 {[%clk 0:00:06]} 38. Ke4 {[%clk 0:00:30]}  Ra4+ {[%clk 0:00:06]} 39. Kf3 {[%clk 0:00:29]}  Raa5 {[%clk 0:00:06]} 40. d6 {[%clk 0:00:30]}  cxd6 {[%clk 0:00:06]} 41. Rxd6 {[%clk 0:00:30]}  Ra4 {[%clk 0:00:05]} 42. Bd4 {[%clk 0:00:26]}  Rb4 {[%clk 0:00:03]} 43. Bxc5 {[%clk 0:00:25]}  bxc5 {[%clk 0:00:02]} 44. c7 {[%clk 0:00:25]}  Ne7 {[%clk 0:00:02]} 45. Ra6 {[%clk 0:00:23]}  Rb2 {[%clk 0:00:02]} 46. Rxa3 {[%clk 0:00:23]}  Rc2 {[%clk 0:00:02]} 47. c8=Q+ {[%clk 0:00:23]}  Nxc8 {[%clk 0:00:01]} 48. Bxc8 {[%clk 0:00:24]}  c4 {[%clk 0:00:01]} 49. h4 {[%clk 0:00:21]}  c3 {[%clk 0:00:01]} 50. Bf5 {[%clk 0:00:21]}  Rc1 {[%clk 0:00:01]} 51. Ra8+ {[%clk 0:00:20]}  Kg7 {[%clk 0:00:01]} 52. Rc8 {[%clk 0:00:21]}  Rf1+ {[%clk 0:00:01]} 53. Kg4 {[%clk 0:00:21]}  Re1 {[%clk 0:00:02]} 54. Rxc3 {[%clk 0:00:20]}  Ra1 {[%clk 0:00:03]} 55. a3 {[%clk 0:00:18]} 1-0


[Site "https://www.chess.com"]

[Event "Titled Tuesday Blitz January 17 Late 2023"]
[White "Vaglio Munoz, Jaime"]
[Black "Weetik, Vjacheslav"]
[WhiteFideId "6500145"]
[BlackFideId "4153472"]
[WhiteElo "2174"]
[BlackElo "2423"]
[Result "0-1"]
[Round "03"]
[TimeControl "180+2"]
[Date "2023.01.17"]
[WhiteClock "0:01:18"]
[BlackClock "0:01:05"]

1. d4 {[%clk 0:03:00]}  d5 {[%clk 0:02:59]} 2. c4 {[%clk 0:03:00]}  c6 {[%clk 0:02:59]} 3. Nc3 {[%clk 0:02:59]}  Nf6 {[%clk 0:02:59]} 4. e3 {[%clk 0:02:58]}  e6 {[%clk 0:02:55]} 5. a3 {[%clk 0:02:52]}  Nbd7 {[%clk 0:02:47]} 6. Nf3 {[%clk 0:02:50]}  Bd6 {[%clk 0:02:45]} 7. Qc2 {[%clk 0:02:49]}  O-O {[%clk 0:02:39]} 8. b4 {[%clk 0:02:49]}  a5 {[%clk 0:02:31]} 9. b5 {[%clk 0:02:48]}  e5 {[%clk 0:02:31]} 10. cxd5 {[%clk 0:02:38]}  cxd5 {[%clk 0:02:28]} 11. dxe5 {[%clk 0:02:36]}  Nxe5 {[%clk 0:02:28]} 12. Be2 {[%clk 0:02:34]}  Bg4 {[%clk 0:02:23]} 13. Nxe5 {[%clk 0:02:28]}  Bxe5 {[%clk 0:02:22]} 14. Bxg4 {[%clk 0:02:21]}  Nxg4 {[%clk 0:02:19]} 15. h3 {[%clk 0:02:20]}  Nxf2 {[%clk 0:01:53]} 16. Kxf2 {[%clk 0:02:15]}  Qf6+ {[%clk 0:01:50]} 17. Ke2 {[%clk 0:02:12]}  Bxc3 {[%clk 0:01:50]} 18. Rb1 {[%clk 0:02:08]}  d4 {[%clk 0:01:44]} 19. Rf1 {[%clk 0:02:06]}  Qe6 {[%clk 0:01:26]} 20. Rf3 {[%clk 0:01:39]}  Rfd8 {[%clk 0:01:10]} 21. Kf1 {[%clk 0:01:37]}  Rac8 {[%clk 0:01:06]} 22. exd4 {[%clk 0:01:18]}  Qe1# {[%clk 0:01:05]} 0-1


[Site "https://www.chess.com"]

[Event "Titled Tuesday Blitz January 17 Late 2023"]
[White "Naroditsky, Daniel"]
[Black "Ansh M Shah"]
[WhiteFideId "2026961"]
[BlackFideId "25033379"]
[WhiteElo "2618"]
[BlackElo "2171"]
[Result "1-0"]
[Round "03"]
[TimeControl "180+2"]
[Date "2023.01.17"]
[WhiteClock "0:00:52"]
[BlackClock "0:00:03"]

1. e4 {[%clk 0:03:00]}  c6 {[%clk 0:02:59]} 2. d4 {[%clk 0:03:00]}  d5 {[%clk 0:03:00]} 3. f3 {[%clk 0:03:01]}  dxe4 {[%clk 0:02:56]} 4. fxe4 {[%clk 0:03:02]}  e5 {[%clk 0:02:57]} 5. Nf3 {[%clk 0:03:02]}  Bg4 {[%clk 0:02:57]} 6. Bc4 {[%clk 0:03:00]}  Nd7 {[%clk 0:02:56]} 7. O-O {[%clk 0:02:59]}  Ngf6 {[%clk 0:02:52]} 8. c3 {[%clk 0:02:59]}  Bd6 {[%clk 0:02:51]} 9. Bg5 {[%clk 0:02:59]}  O-O {[%clk 0:02:50]} 10. Nbd2 {[%clk 0:02:59]}  b5 {[%clk 0:02:45]} 11. Bb3 {[%clk 0:02:57]}  Qb6 {[%clk 0:02:31]} 12. Kh1 {[%clk 0:02:57]}  Bxf3 {[%clk 0:02:29]} 13. Nxf3 {[%clk 0:02:47]}  Nxe4 {[%clk 0:02:27]} 14. Be3 {[%clk 0:02:48]}  exd4 {[%clk 0:02:00]} 15. Bxd4 {[%clk 0:02:45]}  Bc5 {[%clk 0:01:56]} 16. Bxg7 {[%clk 0:02:40]}  Kxg7 {[%clk 0:01:55]} 17. Qxd7 {[%clk 0:02:40]}  Nf2+ {[%clk 0:01:54]} 18. Rxf2 {[%clk 0:02:40]}  Bxf2 {[%clk 0:01:55]} 19. Ng5 {[%clk 0:02:33]}  Rad8 {[%clk 0:01:06]} 20. Qf5 {[%clk 0:02:27]}  Qe3 {[%clk 0:00:53]} 21. Qxh7+ {[%clk 0:02:01]}  Kf6 {[%clk 0:00:52]} 22. Ne4+ {[%clk 0:01:56]}  Ke7 {[%clk 0:00:50]} 23. Qf5 {[%clk 0:01:53]}  Rd7 {[%clk 0:00:10]} 24. Nxf2 {[%clk 0:01:45]}  Rfd8 {[%clk 0:00:09]} 25. h3 {[%clk 0:01:36]}  Rd2 {[%clk 0:00:07]} 26. Qxf7+ {[%clk 0:01:31]}  Kd6 {[%clk 0:00:07]} 27. Rf1 {[%clk 0:01:12]}  Rd7 {[%clk 0:00:06]} 28. Qf5 {[%clk 0:01:03]}  Kc7 {[%clk 0:00:06]} 29. Ng4 {[%clk 0:01:03]}  Qe2 {[%clk 0:00:06]} 30. Rf2 {[%clk 0:00:59]}  Rd1+ {[%clk 0:00:05]} 31. Kh2 {[%clk 0:00:59]}  Qe1 {[%clk 0:00:05]} 32. Bxd1 {[%clk 0:00:58]}  Rxd1 {[%clk 0:00:04]} 33. Qe5+ {[%clk 0:00:51]}  Qxe5+ {[%clk 0:00:03]} 34. Nxe5 {[%clk 0:00:52]} 1-0


[Site "https://www.chess.com"]

[Event "Titled Tuesday Blitz January 17 Late 2023"]
[White "Arenas, David"]
[Black "Martinez Alcantara, Jose Eduardo"]
[WhiteFideId "4403177"]
[BlackFideId "3805662"]
[WhiteElo "2426"]
[BlackElo "2619"]
[Result "0-1"]
[Round "03"]
[TimeControl "180+2"]
[Date "2023.01.17"]
[WhiteClock "0:00:06"]
[BlackClock "0:00:45"]

1. e4 {[%clk 0:02:52]}  c5 {[%clk 0:03:00]} 2. Nf3 {[%clk 0:02:52]}  d6 {[%clk 0:02:59]} 3. Nc3 {[%clk 0:02:52]}  Nf6 {[%clk 0:02:59]} 4. e5 {[%clk 0:02:52]}  dxe5 {[%clk 0:03:00]} 5. Nxe5 {[%clk 0:02:52]}  e6 {[%clk 0:02:55]} 6. Bb5+ {[%clk 0:02:49]}  Bd7 {[%clk 0:02:54]} 7. Nxd7 {[%clk 0:02:47]}  Nbxd7 {[%clk 0:02:55]} 8. d4 {[%clk 0:02:47]}  a6 {[%clk 0:02:54]} 9. Bxd7+ {[%clk 0:02:46]}  Qxd7 {[%clk 0:02:54]} 10. Be3 {[%clk 0:02:42]}  Qc6 {[%clk 0:02:50]} 11. Qe2 {[%clk 0:01:56]}  c4 {[%clk 0:02:20]} 12. O-O {[%clk 0:01:50]}  Bb4 {[%clk 0:02:15]} 13. Nb1 {[%clk 0:01:41]}  Nd5 {[%clk 0:02:12]} 14. c3 {[%clk 0:01:41]}  Be7 {[%clk 0:02:12]} 15. Nd2 {[%clk 0:01:41]}  Rc8 {[%clk 0:02:13]} 16. Nf3 {[%clk 0:01:37]}  O-O {[%clk 0:02:10]} 17. Bg5 {[%clk 0:01:36]}  Bd6 {[%clk 0:02:07]} 18. Bh4 {[%clk 0:01:35]}  b5 {[%clk 0:02:01]} 19. Bg3 {[%clk 0:01:33]}  Be7 {[%clk 0:01:58]} 20. Ne5 {[%clk 0:01:29]}  Qb7 {[%clk 0:01:58]} 21. a3 {[%clk 0:01:25]}  Bd6 {[%clk 0:01:54]} 22. Nf3 {[%clk 0:01:22]}  Be7 {[%clk 0:01:54]} 23. Ne5 {[%clk 0:01:22]}  Bf6 {[%clk 0:01:51]} 24. Ng4 {[%clk 0:01:20]}  Rfe8 {[%clk 0:01:51]} 25. Rfe1 {[%clk 0:01:19]}  Be7 {[%clk 0:01:48]} 26. Ne3 {[%clk 0:01:19]}  Nb6 {[%clk 0:01:44]} 27. Ng4 {[%clk 0:01:14]}  Qd5 {[%clk 0:01:39]} 28. Qe4 {[%clk 0:01:05]}  Qxe4 {[%clk 0:01:39]} 29. Rxe4 {[%clk 0:01:05]}  Bf8 {[%clk 0:01:23]} 30. Re2 {[%clk 0:01:01]}  Red8 {[%clk 0:01:18]} 31. Bh4 {[%clk 0:00:58]}  Rd7 {[%clk 0:01:16]} 32. Ne5 {[%clk 0:00:58]}  Rb7 {[%clk 0:01:16]} 33. Bg3 {[%clk 0:00:54]}  a5 {[%clk 0:01:16]} 34. Kf1 {[%clk 0:00:52]}  Nd5 {[%clk 0:01:15]} 35. Rc1 {[%clk 0:00:47]}  h5 {[%clk 0:01:14]} 36. h3 {[%clk 0:00:46]}  g6 {[%clk 0:01:11]} 37. Nf3 {[%clk 0:00:46]}  Bh6 {[%clk 0:01:10]} 38. Rcc2 {[%clk 0:00:42]}  b4 {[%clk 0:01:10]} 39. cxb4 {[%clk 0:00:38]}  axb4 {[%clk 0:01:11]} 40. axb4 {[%clk 0:00:30]}  Nxb4 {[%clk 0:01:10]} 41. Rc3 {[%clk 0:00:30]}  Nd5 {[%clk 0:01:10]} 42. Ra3 {[%clk 0:00:28]}  Bc1 {[%clk 0:01:06]} 43. Ra2 {[%clk 0:00:17]}  Nb4 {[%clk 0:01:07]} 44. Ra3 {[%clk 0:00:16]}  Nd3 {[%clk 0:01:04]} 45. Rc2 {[%clk 0:00:16]}  Rxb2 {[%clk 0:00:59]} 46. Rac3 {[%clk 0:00:13]}  Rxc2 {[%clk 0:00:58]} 47. Rxc2 {[%clk 0:00:14]}  Bf4 {[%clk 0:00:44]} 48. Bxf4 {[%clk 0:00:12]}  Nxf4 {[%clk 0:00:45]} 49. Ne5 {[%clk 0:00:09]}  c3 {[%clk 0:00:45]} 50. g3 {[%clk 0:00:08]}  Nd5 {[%clk 0:00:45]} 51. Nd3 {[%clk 0:00:06]}  Rc4 {[%clk 0:00:45]} 0-1


[Site "https://www.chess.com"]

[Event "Titled Tuesday Blitz January 17 Late 2023"]
[White "Dardha, Daniel"]
[Black "Leenhouts, Koen"]
[WhiteFideId "240990"]
[BlackFideId "1008439"]
[WhiteElo "2631"]
[BlackElo "2447"]
[Result "1-0"]
[Round "03"]
[TimeControl "180+2"]
[Date "2023.01.17"]
[WhiteClock "0:00:03"]
[BlackClock "0:00:02"]

1. Nc3 {[%clk 0:03:00]}  d5 {[%clk 0:02:59]} 2. e4 {[%clk 0:02:59]}  d4 {[%clk 0:02:59]} 3. Nd5 {[%clk 0:03:00]}  e6 {[%clk 0:02:55]} 4. Nf4 {[%clk 0:03:00]}  e5 {[%clk 0:02:53]} 5. Nd3 {[%clk 0:02:58]}  Bd6 {[%clk 0:02:39]} 6. g3 {[%clk 0:02:54]}  c5 {[%clk 0:02:32]} 7. b3 {[%clk 0:02:46]}  Ne7 {[%clk 0:02:21]} 8. Bg2 {[%clk 0:02:46]}  Nbc6 {[%clk 0:02:20]} 9. Ne2 {[%clk 0:02:44]}  Be6 {[%clk 0:02:15]} 10. O-O {[%clk 0:02:43]}  Qd7 {[%clk 0:02:12]} 11. f4 {[%clk 0:02:42]}  f6 {[%clk 0:02:10]} 12. c3 {[%clk 0:02:21]}  c4 {[%clk 0:01:57]} 13. bxc4 {[%clk 0:02:20]}  Bxc4 {[%clk 0:01:58]} 14. Nb2 {[%clk 0:02:20]}  Ba6 {[%clk 0:01:50]} 15. cxd4 {[%clk 0:02:18]}  Bxe2 {[%clk 0:01:49]} 16. Qxe2 {[%clk 0:02:18]}  Nxd4 {[%clk 0:01:49]} 17. Qd3 {[%clk 0:02:15]}  O-O {[%clk 0:01:36]} 18. Nc4 {[%clk 0:02:14]}  Bc5 {[%clk 0:01:28]} 19. Kh1 {[%clk 0:02:12]}  Nec6 {[%clk 0:01:28]} 20. Ne3 {[%clk 0:02:04]}  Kh8 {[%clk 0:01:22]} 21. Nd5 {[%clk 0:01:50]}  Nb4 {[%clk 0:01:16]} 22. Nxb4 {[%clk 0:01:50]}  Bxb4 {[%clk 0:01:17]} 23. Bb2 {[%clk 0:01:50]}  Rad8 {[%clk 0:01:09]} 24. Rac1 {[%clk 0:01:39]}  Nc6 {[%clk 0:01:05]} 25. Qb5 {[%clk 0:00:49]}  Qxd2 {[%clk 0:00:51]} 26. Ba1 {[%clk 0:00:39]}  Nd4 {[%clk 0:00:17]} 27. Qxb7 {[%clk 0:00:31]}  a5 {[%clk 0:00:16]} 28. Rc7 {[%clk 0:00:21]}  Rg8 {[%clk 0:00:16]} 29. fxe5 {[%clk 0:00:19]}  fxe5 {[%clk 0:00:17]} 30. Bxd4 {[%clk 0:00:12]}  Qxd4 {[%clk 0:00:14]} 31. h4 {[%clk 0:00:11]}  Qe3 {[%clk 0:00:12]} 32. Kh2 {[%clk 0:00:06]}  Rd2 {[%clk 0:00:10]} 33. Rxg7 {[%clk 0:00:02]}  Rxg7 {[%clk 0:00:07]} 34. Qb8+ {[%clk 0:00:03]}  Rg8 {[%clk 0:00:05]} 35. Qxe5+ {[%clk 0:00:03]}  Rg7 {[%clk 0:00:05]} 36. Qe8+ {[%clk 0:00:02]}  Rg8 {[%clk 0:00:06]} 37. Qe5+ {[%clk 0:00:02]}  Rg7 {[%clk 0:00:06]} 38. Rf7 {[%clk 0:00:02]}  Rxg2+ {[%clk 0:00:03]} 39. Kxg2 {[%clk 0:00:03]}  Qe2+ {[%clk 0:00:02]} 40. Kh3 {[%clk 0:00:03]}  Qg4+ {[%clk 0:00:02]} 41. Kh2 {[%clk 0:00:03]}  Qe2+ {[%clk 0:00:02]} 42. Kh3 {[%clk 0:00:03]}  Qg4+ {[%clk 0:00:03]} 43. Kg2 {[%clk 0:00:03]}  Qe2+ {[%clk 0:00:03]} 44. Rf2 {[%clk 0:00:04]}  Qe3 {[%clk 0:00:02]} 45. Rc2 {[%clk 0:00:03]} 1-0


[Site "https://www.chess.com"]

[Event "Titled Tuesday Blitz January 17 Late 2023"]
[White "Hnydiuk, Aleksander"]
[Black "Sanal, Vahap"]
[WhiteFideId "1109057"]
[BlackFideId "6300545"]
[WhiteElo "2363"]
[BlackElo "2600"]
[Result "0-1"]
[Round "03"]
[TimeControl "180+2"]
[Date "2023.01.17"]
[WhiteClock "0:00:06"]
[BlackClock "0:00:18"]

1. d4 {[%clk 0:03:00]}  d6 {[%clk 0:03:00]} 2. Bf4 {[%clk 0:03:00]}  Nf6 {[%clk 0:03:00]} 3. e3 {[%clk 0:02:59]}  g6 {[%clk 0:03:00]} 4. Nc3 {[%clk 0:02:54]}  Bg7 {[%clk 0:03:00]} 5. Qd2 {[%clk 0:02:55]}  O-O {[%clk 0:03:00]} 6. O-O-O {[%clk 0:02:54]}  c6 {[%clk 0:02:59]} 7. Kb1 {[%clk 0:02:50]}  b5 {[%clk 0:02:59]} 8. Bd3 {[%clk 0:02:48]}  Nbd7 {[%clk 0:02:46]} 9. Nf3 {[%clk 0:02:45]}  a5 {[%clk 0:02:45]} 10. h4 {[%clk 0:02:43]}  h5 {[%clk 0:02:36]} 11. Ng5 {[%clk 0:02:21]}  e5 {[%clk 0:02:27]} 12. Bh2 {[%clk 0:02:17]}  Qb6 {[%clk 0:02:19]} 13. Nce4 {[%clk 0:02:02]}  Nxe4 {[%clk 0:02:18]} 14. Nxe4 {[%clk 0:02:00]}  d5 {[%clk 0:02:18]} 15. Nd6 {[%clk 0:01:54]}  exd4 {[%clk 0:02:12]} 16. exd4 {[%clk 0:01:55]}  Qxd4 {[%clk 0:02:12]} 17. c3 {[%clk 0:01:54]}  Qf6 {[%clk 0:02:07]} 18. g4 {[%clk 0:01:45]}  hxg4 {[%clk 0:02:04]} 19. h5 {[%clk 0:01:43]}  Nc5 {[%clk 0:01:59]} 20. h6 {[%clk 0:01:27]}  Nxd3 {[%clk 0:01:38]} 21. hxg7 {[%clk 0:01:23]}  Rd8 {[%clk 0:01:38]} 22. Nxc8 {[%clk 0:01:08]}  Raxc8 {[%clk 0:01:25]} 23. Qxd3 {[%clk 0:01:05]}  Re8 {[%clk 0:01:22]} 24. Bg3 {[%clk 0:00:45]}  Kxg7 {[%clk 0:01:16]} 25. Qd2 {[%clk 0:00:45]}  Rh8 {[%clk 0:01:13]} 26. Rxh8 {[%clk 0:00:38]}  Rxh8 {[%clk 0:01:13]} 27. Re1 {[%clk 0:00:38]}  Qf5+ {[%clk 0:01:11]} 28. Kc1 {[%clk 0:00:37]}  c5 {[%clk 0:01:00]} 29. Be5+ {[%clk 0:00:31]}  f6 {[%clk 0:01:01]} 30. Bg3 {[%clk 0:00:29]}  g5 {[%clk 0:01:01]} 31. Re7+ {[%clk 0:00:24]}  Kg6 {[%clk 0:01:01]} 32. Qc2 {[%clk 0:00:18]}  Rh1+ {[%clk 0:00:57]} 33. Kd2 {[%clk 0:00:18]}  Qxc2+ {[%clk 0:00:56]} 34. Kxc2 {[%clk 0:00:19]}  f5 {[%clk 0:00:55]} 35. Re6+ {[%clk 0:00:19]}  Kf7 {[%clk 0:00:55]} 36. Re5 {[%clk 0:00:17]}  Kf6 {[%clk 0:00:50]} 37. Rxd5 {[%clk 0:00:16]}  f4 {[%clk 0:00:50]} 38. Rxc5 {[%clk 0:00:15]}  fxg3 {[%clk 0:00:50]} 39. fxg3 {[%clk 0:00:16]}  Rg1 {[%clk 0:00:43]} 40. Rxb5 {[%clk 0:00:15]}  Rxg3 {[%clk 0:00:44]} 41. Rxa5 {[%clk 0:00:15]}  Rf3 {[%clk 0:00:35]} 42. Ra8 {[%clk 0:00:11]}  Ke5 {[%clk 0:00:32]} 43. Kd2 {[%clk 0:00:07]}  g3 {[%clk 0:00:32]} 44. Rg8 {[%clk 0:00:06]}  Kf4 {[%clk 0:00:28]} 45. Ke2 {[%clk 0:00:06]}  g2 {[%clk 0:00:21]} 46. Rf8+ {[%clk 0:00:07]}  Kg4 {[%clk 0:00:20]} 47. Rxf3 {[%clk 0:00:07]}  g1=Q {[%clk 0:00:21]} 48. Rf2 {[%clk 0:00:07]}  Kh3 {[%clk 0:00:18]} 49. Kf3 {[%clk 0:00:06]}  g4+ {[%clk 0:00:18]} 0-1


[Site "https://www.chess.com"]

[Event "Titled Tuesday Blitz January 17 Late 2023"]
[White "Jones, Gawain C B"]
[Black "Malka, Samuel"]
[WhiteFideId "409561"]
[BlackFideId "20643675"]
[WhiteElo "2618"]
[BlackElo "2165"]
[Result "1-0"]
[Round "03"]
[TimeControl "180+2"]
[Date "2023.01.17"]
[WhiteClock "0:00:10"]
[BlackClock "0:00:06"]

1. e4 {[%clk 0:03:00]}  e5 {[%clk 0:02:55]} 2. Nf3 {[%clk 0:02:57]}  Nc6 {[%clk 0:02:55]} 3. d4 {[%clk 0:02:58]}  exd4 {[%clk 0:02:54]} 4. Bc4 {[%clk 0:02:59]}  Nf6 {[%clk 0:02:54]} 5. e5 {[%clk 0:02:59]}  Ne4 {[%clk 0:02:54]} 6. Qe2 {[%clk 0:02:58]}  Nc5 {[%clk 0:02:52]} 7. O-O {[%clk 0:02:58]}  Ne6 {[%clk 0:02:50]} 8. Bxe6 {[%clk 0:02:58]}  dxe6 {[%clk 0:02:51]} 9. Rd1 {[%clk 0:02:58]}  Bd7 {[%clk 0:02:00]} 10. Nxd4 {[%clk 0:02:57]}  Qh4 {[%clk 0:01:59]} 11. Nf3 {[%clk 0:02:44]}  Qh5 {[%clk 0:01:59]} 12. Nc3 {[%clk 0:02:40]}  O-O-O {[%clk 0:01:46]} 13. Bg5 {[%clk 0:02:36]}  Be7 {[%clk 0:01:46]} 14. Bxe7 {[%clk 0:02:34]}  Nxe7 {[%clk 0:01:47]} 15. Rd4 {[%clk 0:02:17]}  Bc6 {[%clk 0:01:42]} 16. Rxd8+ {[%clk 0:01:54]}  Rxd8 {[%clk 0:01:42]} 17. Nd4 {[%clk 0:01:54]}  Qxe2 {[%clk 0:01:37]} 18. Ncxe2 {[%clk 0:01:55]}  Ng6 {[%clk 0:01:22]} 19. Nxc6 {[%clk 0:01:44]}  bxc6 {[%clk 0:01:23]} 20. f4 {[%clk 0:01:38]}  Rd2 {[%clk 0:01:21]} 21. Kf1 {[%clk 0:01:35]}  Rxc2 {[%clk 0:01:17]} 22. b3 {[%clk 0:01:35]}  Nh4 {[%clk 0:01:02]} 23. g3 {[%clk 0:01:20]}  Nf3 {[%clk 0:00:50]} 24. h3 {[%clk 0:01:19]}  Nd2+ {[%clk 0:00:43]} 25. Kf2 {[%clk 0:01:15]}  Ne4+ {[%clk 0:00:42]} 26. Ke3 {[%clk 0:01:13]}  Nc3 {[%clk 0:00:36]} 27. Nd4 {[%clk 0:01:08]}  Nd5+ {[%clk 0:00:35]} 28. Kf3 {[%clk 0:01:04]}  Rc3+ {[%clk 0:00:31]} 29. Kf2 {[%clk 0:00:57]}  a6 {[%clk 0:00:30]} 30. Re1 {[%clk 0:00:44]}  c5 {[%clk 0:00:29]} 31. Nf3 {[%clk 0:00:45]}  Rc2+ {[%clk 0:00:24]} 32. Re2 {[%clk 0:00:44]}  Rc1 {[%clk 0:00:20]} 33. Re1 {[%clk 0:00:34]}  Rc2+ {[%clk 0:00:20]} 34. Re2 {[%clk 0:00:35]}  Rc1 {[%clk 0:00:21]} 35. Ng5 {[%clk 0:00:28]}  Nc3 {[%clk 0:00:16]} 36. Re1 {[%clk 0:00:29]}  Rc2+ {[%clk 0:00:15]} 37. Kf3 {[%clk 0:00:29]}  Nxa2 {[%clk 0:00:15]} 38. Nxf7 {[%clk 0:00:21]}  Nb4 {[%clk 0:00:15]} 39. Ng5 {[%clk 0:00:18]}  Rc3+ {[%clk 0:00:15]} 40. Kg4 {[%clk 0:00:17]}  Nd3 {[%clk 0:00:12]} 41. Re2 {[%clk 0:00:17]}  Nc1 {[%clk 0:00:09]} 42. Re4 {[%clk 0:00:14]}  Kd7 {[%clk 0:00:05]} 43. Nxh7 {[%clk 0:00:13]}  Nxb3 {[%clk 0:00:06]} 44. h4 {[%clk 0:00:12]}  Nd4 {[%clk 0:00:05]} 45. Nf8+ {[%clk 0:00:11]}  Ke7 {[%clk 0:00:03]} 46. Ng6+ {[%clk 0:00:11]}  Kf7 {[%clk 0:00:04]} 47. Nh8+ {[%clk 0:00:07]}  Ke8 {[%clk 0:00:02]} 48. Ng6 {[%clk 0:00:08]}  a5 {[%clk 0:00:02]} 49. Re1 {[%clk 0:00:06]}  a4 {[%clk 0:00:03]} 50. Rb1 {[%clk 0:00:06]}  Rb3 {[%clk 0:00:03]} 51. Rc1 {[%clk 0:00:05]}  a3 {[%clk 0:00:03]} 52. Rxc5 {[%clk 0:00:06]}  a2 {[%clk 0:00:04]} 53. Ra5 {[%clk 0:00:06]}  Rb2 {[%clk 0:00:04]} 54. Ra8+ {[%clk 0:00:06]}  Kd7 {[%clk 0:00:05]} 55. Nf8+ {[%clk 0:00:06]}  Kc6 {[%clk 0:00:05]} 56. Kg5 {[%clk 0:00:07]}  Nb3 {[%clk 0:00:05]} 57. Nxe6 {[%clk 0:00:07]}  a1=Q {[%clk 0:00:04]} 58. Rxa1 {[%clk 0:00:08]}  Nxa1 {[%clk 0:00:05]} 59. Nxg7 {[%clk 0:00:09]}  Kd7 {[%clk 0:00:05]} 60. f5 {[%clk 0:00:08]}  Ke7 {[%clk 0:00:05]} 61. f6+ {[%clk 0:00:08]}  Kf7 {[%clk 0:00:06]} 62. e6+ {[%clk 0:00:09]}  Kf8 {[%clk 0:00:06]} 63. e7+ {[%clk 0:00:09]}  Kf7 {[%clk 0:00:06]} 64. e8=Q# {[%clk 0:00:10]} 1-0


[Site "https://www.chess.com"]